[Event "Titled Tuesday Blitz May 17 Early 2022"]
[White "Druska, Juraj"]
[Black "Salem, A.R. Saleh"]
[WhiteFideId "14915650"]
[BlackFideId "9301348"]
[WhiteElo "2369"]
[BlackElo "2679"]
[Result "1-0"]
[Round "03"]
[TimeControl "180+1"]
[Date "2022.05.17"]
[WhiteClock "0:00:04"]
[BlackClock "0:00:02"]

1. d4 {[%clk 0:03:00]}  Nf6 {[%clk 0:03:00]} 2. c4 {[%clk 0:03:01]}  g6 {[%clk 0:03:01]} 3. Nc3 {[%clk 0:03:01]}  d5 {[%clk 0:03:01]} 4. cxd5 {[%clk 0:03:00]}  Nxd5 {[%clk 0:03:02]} 5. e4 {[%clk 0:02:59]}  Nxc3 {[%clk 0:03:03]} 6. bxc3 {[%clk 0:03:00]}  Bg7 {[%clk 0:03:03]} 7. Be3 {[%clk 0:03:00]}  c5 {[%clk 0:03:04]} 8. Rc1 {[%clk 0:03:00]}  O-O {[%clk 0:03:00]} 9. Nf3 {[%clk 0:03:00]}  Bg4 {[%clk 0:03:00]} 10. Be2 {[%clk 0:02:52]}  Qa5 {[%clk 0:03:00]} 11. O-O {[%clk 0:02:50]}  Qxa2 {[%clk 0:02:53]} 12. Ra1 {[%clk 0:02:49]}  Qb2 {[%clk 0:02:52]} 13. Qd3 {[%clk 0:02:43]}  Qb6 {[%clk 0:02:41]} 14. h3 {[%clk 0:02:32]}  Bd7 {[%clk 0:02:30]} 15. d5 {[%clk 0:02:18]}  e6 {[%clk 0:02:15]} 16. Rab1 {[%clk 0:02:00]}  Qc7 {[%clk 0:02:12]} 17. d6 {[%clk 0:01:58]}  Qc8 {[%clk 0:02:13]} 18. Qd2 {[%clk 0:01:55]}  Bc6 {[%clk 0:02:10]} 19. e5 {[%clk 0:01:41]}  Nd7 {[%clk 0:02:08]} 20. Bh6 {[%clk 0:01:41]}  Nxe5 {[%clk 0:01:59]} 21. Nxe5 {[%clk 0:01:33]}  Bxe5 {[%clk 0:02:00]} 22. Qe3 {[%clk 0:01:19]}  Bg7 {[%clk 0:01:46]} 23. Bxg7 {[%clk 0:01:16]}  Kxg7 {[%clk 0:01:47]} 24. Qxc5 {[%clk 0:01:16]}  Qd7 {[%clk 0:01:42]} 25. Rfd1 {[%clk 0:01:14]}  Rfc8 {[%clk 0:01:32]} 26. Qd4+ {[%clk 0:01:10]}  f6 {[%clk 0:01:32]} 27. c4 {[%clk 0:01:10]}  b6 {[%clk 0:01:27]} 28. Re1 {[%clk 0:01:02]}  e5 {[%clk 0:01:20]} 29. Qd3 {[%clk 0:00:58]}  Rd8 {[%clk 0:01:17]} 30. Rbd1 {[%clk 0:00:57]}  h5 {[%clk 0:01:09]} 31. Qg3 {[%clk 0:00:54]}  Qf5 {[%clk 0:00:48]} 32. Bd3 {[%clk 0:00:52]}  e4 {[%clk 0:00:49]} 33. Bc2 {[%clk 0:00:48]}  Rd7 {[%clk 0:00:46]} 34. Rd4 {[%clk 0:00:45]}  Re8 {[%clk 0:00:32]} 35. Qe3 {[%clk 0:00:20]}  Qc5 {[%clk 0:00:20]} 36. Red1 {[%clk 0:00:20]}  a5 {[%clk 0:00:17]} 37. Qg3 {[%clk 0:00:17]}  Qe5 {[%clk 0:00:16]} 38. Qe3 {[%clk 0:00:16]}  Re6 {[%clk 0:00:17]} 39. Qa3 {[%clk 0:00:15]}  e3 {[%clk 0:00:15]} 40. Qd3 {[%clk 0:00:12]}  f5 {[%clk 0:00:11]} 41. Qxe3 {[%clk 0:00:06]}  Qxe3 {[%clk 0:00:12]} 42. fxe3 {[%clk 0:00:07]}  Rxe3 {[%clk 0:00:12]} 43. Rb1 {[%clk 0:00:08]}  Re2 {[%clk 0:00:11]} 44. Rxb6 {[%clk 0:00:09]}  Rxg2+ {[%clk 0:00:08]} 45. Kf1 {[%clk 0:00:09]}  Rxc2 {[%clk 0:00:09]} 46. Rxc6 {[%clk 0:00:09]}  Kf6 {[%clk 0:00:07]} 47. c5 {[%clk 0:00:05]}  Rb7 {[%clk 0:00:04]} 48. Rb6 {[%clk 0:00:03]}  Rd7 {[%clk 0:00:03]} 49. c6 {[%clk 0:00:03]}  Ke6 {[%clk 0:00:01]} 50. cxd7 {[%clk 0:00:04]}  Kxd7 {[%clk 0:00:02]} 51. Rb7+ {[%clk 0:00:04]}  Kd8 {[%clk 0:00:03]} 52. d7 {[%clk 0:00:04]}  Rb2 {[%clk 0:00:02]} 53. Rxb2 {[%clk 0:00:04]} 1-0


[Site "https://www.chess.com"]

[Event "Titled Tuesday Blitz May 17 Early 2022"]
[White "Grischuk, Alexander"]
[Black "Rostovtsev, Dmitry"]
[WhiteFideId "4126025"]
[BlackFideId "34278320"]
[WhiteElo "2762"]
[BlackElo "2274"]
[Result "1-0"]
[Round "03"]
[TimeControl "180+1"]
[Date "2022.05.17"]
[WhiteClock "0:00:40"]
[BlackClock "0:01:04"]

1. d4 {[%clk 0:03:00]}  Nf6 {[%clk 0:03:00]} 2. Nf3 {[%clk 0:03:00]}  e6 {[%clk 0:02:58]} 3. c4 {[%clk 0:02:59]}  d5 {[%clk 0:02:57]} 4. Nc3 {[%clk 0:02:58]}  a6 {[%clk 0:02:55]} 5. c5 {[%clk 0:02:55]}  b6 {[%clk 0:02:55]} 6. cxb6 {[%clk 0:02:55]}  c5 {[%clk 0:02:55]} 7. Bf4 {[%clk 0:02:51]}  Nbd7 {[%clk 0:02:45]} 8. Bc7 {[%clk 0:02:49]}  Qe7 {[%clk 0:02:44]} 9. e3 {[%clk 0:02:44]}  Bb7 {[%clk 0:02:38]} 10. a3 {[%clk 0:02:36]}  g6 {[%clk 0:02:29]} 11. Qa4 {[%clk 0:02:24]}  Bg7 {[%clk 0:02:19]} 12. Ne5 {[%clk 0:02:24]}  O-O {[%clk 0:02:17]} 13. Nc6 {[%clk 0:02:23]}  Qe8 {[%clk 0:02:17]} 14. Na5 {[%clk 0:02:17]}  Qc8 {[%clk 0:02:11]} 15. Be2 {[%clk 0:01:34]}  Ne4 {[%clk 0:01:24]} 16. Nxe4 {[%clk 0:01:32]}  dxe4 {[%clk 0:01:24]} 17. Nxb7 {[%clk 0:01:27]}  Qxb7 {[%clk 0:01:25]} 18. Qxd7 {[%clk 0:01:25]}  cxd4 {[%clk 0:01:25]} 19. exd4 {[%clk 0:01:18]}  Rfd8 {[%clk 0:01:25]} 20. Qe7 {[%clk 0:00:58]}  e3 {[%clk 0:01:13]} 21. O-O {[%clk 0:00:54]}  exf2+ {[%clk 0:01:11]} 22. Rxf2 {[%clk 0:00:54]}  Bxd4 {[%clk 0:01:11]} 23. Bxd8 {[%clk 0:00:51]}  Bxf2+ {[%clk 0:01:10]} 24. Kxf2 {[%clk 0:00:49]}  Qe4 {[%clk 0:01:08]} 25. Rd1 {[%clk 0:00:41]}  Qf4+ {[%clk 0:01:05]} 26. Bf3 {[%clk 0:00:40]}  Qd2+ {[%clk 0:01:04]} 27. Rxd2 {[%clk 0:00:40]} 1-0


[Site "https://www.chess.com"]

[Event "Titled Tuesday Blitz May 17 Early 2022"]
[White "Izzat, Kanan"]
[Black "Shimanov, Aleksandr"]
[WhiteFideId "13405209"]
[BlackFideId "4198603"]
[WhiteElo "2362"]
[BlackElo "2605"]
[Result "1/2-1/2"]
[Round "03"]
[TimeControl "180+1"]
[Date "2022.05.17"]
[WhiteClock "0:00:04"]
[BlackClock "0:00:06"]

1. e4 {[%clk 0:03:00]}  c6 {[%clk 0:02:56]} 2. d4 {[%clk 0:03:00]}  d5 {[%clk 0:02:56]} 3. e5 {[%clk 0:03:00]}  Bf5 {[%clk 0:02:56]} 4. Nf3 {[%clk 0:03:00]}  e6 {[%clk 0:02:56]} 5. Be2 {[%clk 0:03:01]}  c5 {[%clk 0:02:56]} 6. c3 {[%clk 0:02:59]}  Nc6 {[%clk 0:02:55]} 7. O-O {[%clk 0:02:56]}  Bg6 {[%clk 0:02:55]} 8. Re1 {[%clk 0:02:30]}  cxd4 {[%clk 0:02:49]} 9. Nxd4 {[%clk 0:02:30]}  Nge7 {[%clk 0:02:45]} 10. Bf1 {[%clk 0:02:16]}  a6 {[%clk 0:02:41]} 11. Bf4 {[%clk 0:02:13]}  Qb6 {[%clk 0:02:30]} 12. Nb3 {[%clk 0:02:12]}  Nf5 {[%clk 0:02:29]} 13. N1d2 {[%clk 0:02:11]}  Be7 {[%clk 0:02:29]} 14. Nf3 {[%clk 0:02:09]}  O-O {[%clk 0:02:28]} 15. Bd3 {[%clk 0:02:08]}  a5 {[%clk 0:02:24]} 16. a4 {[%clk 0:02:02]}  Rfd8 {[%clk 0:02:15]} 17. Bb5 {[%clk 0:01:35]}  d4 {[%clk 0:02:00]} 18. cxd4 {[%clk 0:01:32]}  Ncxd4 {[%clk 0:01:58]} 19. Nfxd4 {[%clk 0:01:29]}  Nxd4 {[%clk 0:01:58]} 20. Be3 {[%clk 0:01:29]}  Bc5 {[%clk 0:01:45]} 21. Nxc5 {[%clk 0:01:28]}  Qxc5 {[%clk 0:01:46]} 22. Qg4 {[%clk 0:01:02]}  Qb4 {[%clk 0:01:40]} 23. Rad1 {[%clk 0:00:53]}  Nc2 {[%clk 0:01:23]} 24. Qxb4 {[%clk 0:00:50]}  axb4 {[%clk 0:01:23]} 25. Bb6 {[%clk 0:00:49]}  Rdc8 {[%clk 0:00:33]} 26. Re2 {[%clk 0:00:49]}  b3 {[%clk 0:00:34]} 27. Red2 {[%clk 0:00:49]}  h6 {[%clk 0:00:31]} 28. f3 {[%clk 0:00:49]}  Nb4 {[%clk 0:00:29]} 29. Rd7 {[%clk 0:00:36]}  Rc2 {[%clk 0:00:26]} 30. Bd4 {[%clk 0:00:26]}  b6 {[%clk 0:00:20]} 31. Rd6 {[%clk 0:00:19]}  Nd5 {[%clk 0:00:20]} 32. Bc6 {[%clk 0:00:19]}  Rxa4 {[%clk 0:00:19]} 33. Bxa4 {[%clk 0:00:19]}  Nf4 {[%clk 0:00:14]} 34. Bf2 {[%clk 0:00:13]}  Rxb2 {[%clk 0:00:11]} 35. R6d2 {[%clk 0:00:12]}  Bc2 {[%clk 0:00:07]} 36. Bxb3 {[%clk 0:00:04]}  Bxb3 {[%clk 0:00:02]} 37. Rxb2 {[%clk 0:00:05]}  Bxd1 {[%clk 0:00:03]} 38. Rxb6 {[%clk 0:00:05]}  Nd5 {[%clk 0:00:03]} 39. Rd6 {[%clk 0:00:04]}  Bc2 {[%clk 0:00:03]} 40. Bd4 {[%clk 0:00:05]}  h5 {[%clk 0:00:03]} 41. Kf2 {[%clk 0:00:05]}  g5 {[%clk 0:00:03]} 42. g4 {[%clk 0:00:05]}  hxg4 {[%clk 0:00:04]} 43. fxg4 {[%clk 0:00:06]}  Kg7 {[%clk 0:00:04]} 44. Kg3 {[%clk 0:00:04]}  Bg6 {[%clk 0:00:03]} 45. h3 {[%clk 0:00:03]}  Be4 {[%clk 0:00:04]} 46. Bf2 {[%clk 0:00:03]}  Kg6 {[%clk 0:00:04]} 47. Be1 {[%clk 0:00:04]}  Kg7 {[%clk 0:00:04]} 48. Ba5 {[%clk 0:00:04]}  Bh7 {[%clk 0:00:04]} 49. Bd8 {[%clk 0:00:04]}  Kg6 {[%clk 0:00:04]} 50. Rd7 {[%clk 0:00:05]}  Nc3 {[%clk 0:00:04]} 51. Bf6 {[%clk 0:00:04]}  Ne2+ {[%clk 0:00:04]} 52. Kh2 {[%clk 0:00:03]}  Nf4 {[%clk 0:00:04]} 53. Rd8 {[%clk 0:00:03]}  Nd5 {[%clk 0:00:04]} 54. Rh8 {[%clk 0:00:03]}  Kh6 {[%clk 0:00:04]} 55. Kg3 {[%clk 0:00:03]}  Kg6 {[%clk 0:00:03]} 56. h4 {[%clk 0:00:03]}  gxh4+ {[%clk 0:00:03]} 57. Kxh4 {[%clk 0:00:04]}  Nf4 {[%clk 0:00:03]} 58. Bg5 {[%clk 0:00:03]}  Nd5 {[%clk 0:00:04]} 59. Bf6 {[%clk 0:00:03]}  Nf4 {[%clk 0:00:03]} 60. Kg3 {[%clk 0:00:03]}  Nd5 {[%clk 0:00:04]} 61. g5 {[%clk 0:00:03]}  Nc3 {[%clk 0:00:04]} 62. Kh4 {[%clk 0:00:03]}  Nd5 {[%clk 0:00:04]} 63. Kg3 {[%clk 0:00:03]}  Nc3 {[%clk 0:00:05]} 64. Ra8 {[%clk 0:00:04]}  Nd5 {[%clk 0:00:05]} 65. Ra1 {[%clk 0:00:04]}  Ne3 {[%clk 0:00:05]} 66. Rh1 {[%clk 0:00:04]}  Nf5+ {[%clk 0:00:05]} 67. Kf4 {[%clk 0:00:05]}  Bg8 {[%clk 0:00:05]} 68. Rh8 {[%clk 0:00:05]}  Bh7 {[%clk 0:00:06]} 69. Ra8 {[%clk 0:00:04]}  Nd4 {[%clk 0:00:03]} 70. Ra1 {[%clk 0:00:04]}  Nf5 {[%clk 0:00:04]} 71. Rh1 {[%clk 0:00:04]}  Bg8 {[%clk 0:00:04]} 72. Rh2 {[%clk 0:00:04]}  Bh7 {[%clk 0:00:04]} 73. Rd2 {[%clk 0:00:03]}  Bg8 {[%clk 0:00:05]} 74. Rd8 {[%clk 0:00:03]}  Bh7 {[%clk 0:00:05]} 75. Rh8 {[%clk 0:00:02]}  Nh4 {[%clk 0:00:05]} 76. Ra8 {[%clk 0:00:02]}  Nf5 {[%clk 0:00:05]} 77. Ra3 {[%clk 0:00:02]}  Bg8 {[%clk 0:00:06]} 78. Rh3 {[%clk 0:00:03]}  Bh7 {[%clk 0:00:06]} 79. Rh1 {[%clk 0:00:04]} 1/2-1/2


[Site "https://www.chess.com"]

[Event "Titled Tuesday Blitz May 17 Early 2022"]
[White "Kobo, Ori"]
[Black "Tatarinov, Dmitry"]
[WhiteFideId "2812320"]
[BlackFideId "24160067"]
[WhiteElo "2420"]
[BlackElo "2302"]
[Result "1/2-1/2"]
[Round "03"]
[TimeControl "180+1"]
[Date "2022.05.17"]
[WhiteClock "0:00:05"]
[BlackClock "0:00:31"]

1. d4 {[%clk 0:03:00]}  Nf6 {[%clk 0:02:59]} 2. c4 {[%clk 0:03:01]}  e6 {[%clk 0:03:00]} 3. Nc3 {[%clk 0:03:01]}  d5 {[%clk 0:03:00]} 4. cxd5 {[%clk 0:03:01]}  exd5 {[%clk 0:02:59]} 5. Bg5 {[%clk 0:03:01]}  Be7 {[%clk 0:02:59]} 6. e3 {[%clk 0:03:00]}  O-O {[%clk 0:03:00]} 7. Bd3 {[%clk 0:03:00]}  c6 {[%clk 0:03:00]} 8. h3 {[%clk 0:02:58]}  Nbd7 {[%clk 0:03:00]} 9. Nf3 {[%clk 0:02:46]}  Re8 {[%clk 0:03:00]} 10. O-O {[%clk 0:02:46]}  Nf8 {[%clk 0:02:58]} 11. Bf4 {[%clk 0:02:34]}  Bd6 {[%clk 0:02:52]} 12. Bxd6 {[%clk 0:02:35]}  Qxd6 {[%clk 0:02:51]} 13. Qc2 {[%clk 0:02:35]}  g6 {[%clk 0:02:38]} 14. Ne5 {[%clk 0:02:32]}  N6d7 {[%clk 0:02:36]} 15. f4 {[%clk 0:02:20]}  f6 {[%clk 0:02:35]} 16. Nxd7 {[%clk 0:02:19]}  Bxd7 {[%clk 0:02:33]} 17. Qf2 {[%clk 0:02:15]}  f5 {[%clk 0:02:09]} 18. Rab1 {[%clk 0:01:56]}  Re7 {[%clk 0:02:09]} 19. b4 {[%clk 0:01:56]}  Rae8 {[%clk 0:02:09]} 20. Rfe1 {[%clk 0:01:56]}  Ne6 {[%clk 0:02:06]} 21. a4 {[%clk 0:01:48]}  a6 {[%clk 0:02:04]} 22. a5 {[%clk 0:01:43]}  Nd8 {[%clk 0:02:00]} 23. Na4 {[%clk 0:01:40]}  Nf7 {[%clk 0:02:00]} 24. Nc5 {[%clk 0:01:39]}  Bc8 {[%clk 0:02:00]} 25. Bf1 {[%clk 0:01:28]}  Qf6 {[%clk 0:02:00]} 26. Nd3 {[%clk 0:01:22]}  Nd6 {[%clk 0:02:00]} 27. Ne5 {[%clk 0:01:23]}  g5 {[%clk 0:01:59]} 28. Bd3 {[%clk 0:01:18]}  Rg7 {[%clk 0:01:58]} 29. fxg5 {[%clk 0:01:03]}  Rxg5 {[%clk 0:01:54]} 30. Qf4 {[%clk 0:01:00]}  Re7 {[%clk 0:01:54]} 31. Ng4 {[%clk 0:00:47]}  Qg7 {[%clk 0:01:41]} 32. Qxd6 {[%clk 0:00:41]}  fxg4 {[%clk 0:01:41]} 33. h4 {[%clk 0:00:29]}  Rh5 {[%clk 0:01:39]} 34. Rf1 {[%clk 0:00:26]}  Re8 {[%clk 0:01:32]} 35. g3 {[%clk 0:00:26]}  Rh6 {[%clk 0:01:31]} 36. Qf4 {[%clk 0:00:25]}  Rhe6 {[%clk 0:01:29]} 37. Rbe1 {[%clk 0:00:23]}  R6e7 {[%clk 0:01:25]} 38. Kg2 {[%clk 0:00:17]}  Be6 {[%clk 0:01:21]} 39. h5 {[%clk 0:00:16]}  Rf7 {[%clk 0:01:17]} 40. Qd6 {[%clk 0:00:16]}  Rf3 {[%clk 0:01:15]} 41. Rxf3 {[%clk 0:00:11]}  gxf3+ {[%clk 0:01:16]} 42. Kf2 {[%clk 0:00:12]}  Qg4 {[%clk 0:01:10]} 43. Rh1 {[%clk 0:00:12]}  Bf5 {[%clk 0:01:06]} 44. Bxf5 {[%clk 0:00:06]}  Qxf5 {[%clk 0:01:07]} 45. Rh4 {[%clk 0:00:05]}  Qc2+ {[%clk 0:01:01]} 46. Kxf3 {[%clk 0:00:05]}  Qd1+ {[%clk 0:01:01]} 47. Kg2 {[%clk 0:00:03]}  Qe2+ {[%clk 0:01:01]} 48. Kh3 {[%clk 0:00:04]}  Qf1+ {[%clk 0:01:01]} 49. Kh2 {[%clk 0:00:04]}  Qf2+ {[%clk 0:01:01]} 50. Kh3 {[%clk 0:00:05]}  Qf1+ {[%clk 0:00:55]} 51. Kh2 {[%clk 0:00:05]}  Qe2+ {[%clk 0:00:42]} 52. Kh3 {[%clk 0:00:05]}  Qf1+ {[%clk 0:00:31]} 1/2-1/2


[Site "https://www.chess.com"]

[Event "Titled Tuesday Blitz May 17 Early 2022"]
[White "Lazavik, Denis"]
[Black "Gabrielian, Artur"]
[WhiteFideId "13515110"]
[BlackFideId "4131002"]
[WhiteElo "2437"]
[BlackElo "2440"]
[Result "1-0"]
[Round "03"]
[TimeControl "180+1"]
[Date "2022.05.17"]
[WhiteClock "0:00:03"]
[BlackClock "0:00:15"]

1. d4 {[%clk 0:03:00]}  Nf6 {[%clk 0:02:59]} 2. c4 {[%clk 0:03:01]}  c5 {[%clk 0:02:59]} 3. d5 {[%clk 0:03:01]}  e6 {[%clk 0:03:00]} 4. Nc3 {[%clk 0:03:01]}  exd5 {[%clk 0:03:01]} 5. cxd5 {[%clk 0:03:02]}  d6 {[%clk 0:03:01]} 6. Nf3 {[%clk 0:03:00]}  g6 {[%clk 0:03:02]} 7. h3 {[%clk 0:02:58]}  Bg7 {[%clk 0:03:02]} 8. e4 {[%clk 0:02:58]}  O-O {[%clk 0:03:02]} 9. Bd3 {[%clk 0:02:59]}  Nbd7 {[%clk 0:03:01]} 10. O-O {[%clk 0:02:58]}  Re8 {[%clk 0:03:00]} 11. Re1 {[%clk 0:02:59]}  Ne5 {[%clk 0:02:56]} 12. Nxe5 {[%clk 0:02:59]}  Rxe5 {[%clk 0:02:56]} 13. Bf4 {[%clk 0:02:59]}  Nh5 {[%clk 0:02:56]} 14. Bh2 {[%clk 0:03:00]}  Qh4 {[%clk 0:02:56]} 15. Qf3 {[%clk 0:02:55]}  a6 {[%clk 0:02:56]} 16. a4 {[%clk 0:02:51]}  Bd7 {[%clk 0:02:55]} 17. Bf1 {[%clk 0:02:47]}  Rf8 {[%clk 0:02:47]} 18. g4 {[%clk 0:02:21]}  Rg5 {[%clk 0:02:36]} 19. Bg2 {[%clk 0:02:15]}  Be5 {[%clk 0:02:30]} 20. Bxe5 {[%clk 0:01:14]}  dxe5 {[%clk 0:02:30]} 21. Ne2 {[%clk 0:01:15]}  Ng7 {[%clk 0:01:46]} 22. Qg3 {[%clk 0:01:08]}  Qh6 {[%clk 0:01:41]} 23. f3 {[%clk 0:01:08]}  f5 {[%clk 0:01:14]} 24. h4 {[%clk 0:01:05]}  fxg4 {[%clk 0:01:12]} 25. hxg5 {[%clk 0:01:03]}  Qxg5 {[%clk 0:01:13]} 26. fxg4 {[%clk 0:01:01]}  Bxg4 {[%clk 0:01:08]} 27. Rf1 {[%clk 0:00:56]}  Rxf1+ {[%clk 0:01:01]} 28. Rxf1 {[%clk 0:00:55]}  h5 {[%clk 0:00:55]} 29. Bf3 {[%clk 0:00:49]}  Kh7 {[%clk 0:00:48]} 30. Bxg4 {[%clk 0:00:47]}  hxg4 {[%clk 0:00:49]} 31. Qf2 {[%clk 0:00:44]}  Qd2 {[%clk 0:00:37]} 32. Ng3 {[%clk 0:00:42]}  Qd3 {[%clk 0:00:37]} 33. Re1 {[%clk 0:00:32]}  c4 {[%clk 0:00:32]} 34. Kg2 {[%clk 0:00:28]}  b5 {[%clk 0:00:26]} 35. axb5 {[%clk 0:00:27]}  axb5 {[%clk 0:00:26]} 36. Re3 {[%clk 0:00:27]}  Qb1 {[%clk 0:00:23]} 37. Qd2 {[%clk 0:00:23]}  b4 {[%clk 0:00:14]} 38. Qxb4 {[%clk 0:00:17]}  Nh5 {[%clk 0:00:14]} 39. Nxh5 {[%clk 0:00:12]}  Qc2+ {[%clk 0:00:14]} 40. Kg3 {[%clk 0:00:12]}  gxh5 {[%clk 0:00:14]} 41. Qe7+ {[%clk 0:00:10]}  Kh6 {[%clk 0:00:15]} 42. Qf6+ {[%clk 0:00:09]}  Kh7 {[%clk 0:00:15]} 43. Qf5+ {[%clk 0:00:10]}  Kg8 {[%clk 0:00:16]} 44. Qxh5 {[%clk 0:00:07]}  Qc1 {[%clk 0:00:16]} 45. Qxg4+ {[%clk 0:00:07]}  Kh7 {[%clk 0:00:17]} 46. Qh4+ {[%clk 0:00:03]}  Kg6 {[%clk 0:00:16]} 47. Qg4+ {[%clk 0:00:04]}  Kh7 {[%clk 0:00:17]} 48. Re2 {[%clk 0:00:03]}  Qg1+ {[%clk 0:00:16]} 49. Kh4 {[%clk 0:00:03]}  Qh1+ {[%clk 0:00:16]} 50. Kg5 {[%clk 0:00:02]}  Qh6+ {[%clk 0:00:15]} 51. Kf5 {[%clk 0:00:02]}  Qf8+ {[%clk 0:00:16]} 52. Kxe5 {[%clk 0:00:01]}  Qb8+ {[%clk 0:00:17]} 53. Kd4 {[%clk 0:00:01]}  Qh8+ {[%clk 0:00:18]} 54. e5 {[%clk 0:00:02]}  Qxe5+ {[%clk 0:00:15]} 55. Rxe5 {[%clk 0:00:02]}  c3 {[%clk 0:00:15]} 56. Rh5# {[%clk 0:00:03]} 1-0


[Site "https://www.chess.com"]

[Event "Titled Tuesday Blitz May 17 Early 2022"]
[White "Makarian, Rudik"]
[Black "Lopez, Henry"]
[WhiteFideId "44105681"]
[BlackFideId "5203830"]
[WhiteElo "2419"]
[BlackElo "2177"]
[Result "0-1"]
[Round "03"]
[TimeControl "180+1"]
[Date "2022.05.17"]
[WhiteClock "0:00:10"]
[BlackClock "0:00:37"]

1. b3 {[%clk 0:02:58]}  e5 {[%clk 0:02:59]} 2. Bb2 {[%clk 0:02:59]}  Nc6 {[%clk 0:02:58]} 3. e3 {[%clk 0:02:59]}  Nf6 {[%clk 0:02:57]} 4. Bb5 {[%clk 0:03:00]}  Bd6 {[%clk 0:02:57]} 5. Na3 {[%clk 0:02:55]}  Na5 {[%clk 0:02:56]} 6. Nc4 {[%clk 0:02:48]}  Nxc4 {[%clk 0:02:55]} 7. Bxc4 {[%clk 0:02:49]}  O-O {[%clk 0:02:55]} 8. Ne2 {[%clk 0:02:47]}  c6 {[%clk 0:02:55]} 9. Ng3 {[%clk 0:02:47]}  Bc7 {[%clk 0:02:54]} 10. O-O {[%clk 0:02:44]}  d5 {[%clk 0:02:53]} 11. Be2 {[%clk 0:02:44]}  Re8 {[%clk 0:02:52]} 12. d3 {[%clk 0:02:44]}  a5 {[%clk 0:02:47]} 13. a4 {[%clk 0:02:44]}  Qe7 {[%clk 0:02:44]} 14. Qd2 {[%clk 0:02:44]}  Bd6 {[%clk 0:02:43]} 15. Kh1 {[%clk 0:02:43]}  h6 {[%clk 0:02:37]} 16. Bc3 {[%clk 0:02:41]}  b6 {[%clk 0:02:36]} 17. Rae1 {[%clk 0:02:38]}  Bd7 {[%clk 0:02:31]} 18. Bd1 {[%clk 0:02:23]}  Bb4 {[%clk 0:02:16]} 19. h3 {[%clk 0:02:15]}  Qc5 {[%clk 0:02:10]} 20. Bxb4 {[%clk 0:02:13]}  Qxb4 {[%clk 0:02:10]} 21. c3 {[%clk 0:02:04]}  Qh4 {[%clk 0:02:09]} 22. Qe2 {[%clk 0:01:51]}  e4 {[%clk 0:01:58]} 23. d4 {[%clk 0:01:49]}  g6 {[%clk 0:01:54]} 24. Kg1 {[%clk 0:01:32]}  h5 {[%clk 0:01:54]} 25. Nh1 {[%clk 0:01:30]}  Kg7 {[%clk 0:01:46]} 26. f4 {[%clk 0:01:24]}  exf3 {[%clk 0:01:29]} 27. Qxf3 {[%clk 0:01:24]}  Re7 {[%clk 0:01:28]} 28. Bc2 {[%clk 0:01:22]}  Rae8 {[%clk 0:01:26]} 29. Nf2 {[%clk 0:01:13]}  Qg5 {[%clk 0:01:23]} 30. Nd1 {[%clk 0:01:06]}  h4 {[%clk 0:01:20]} 31. Qf4 {[%clk 0:01:03]}  Qxf4 {[%clk 0:01:16]} 32. Rxf4 {[%clk 0:01:04]}  g5 {[%clk 0:01:16]} 33. Rf2 {[%clk 0:01:01]}  Nh5 {[%clk 0:01:16]} 34. Kh2 {[%clk 0:00:53]}  Ng3 {[%clk 0:01:15]} 35. Rf3 {[%clk 0:00:54]}  f5 {[%clk 0:01:14]} 36. c4 {[%clk 0:00:43]}  Be6 {[%clk 0:01:09]} 37. c5 {[%clk 0:00:39]}  bxc5 {[%clk 0:01:07]} 38. dxc5 {[%clk 0:00:40]}  Bc8 {[%clk 0:01:05]} 39. Rg1 {[%clk 0:00:33]}  Rf8 {[%clk 0:00:57]} 40. Bd3 {[%clk 0:00:30]}  Bd7 {[%clk 0:00:50]} 41. Nf2 {[%clk 0:00:24]}  Rfe8 {[%clk 0:00:48]} 42. Nd1 {[%clk 0:00:20]}  Rb8 {[%clk 0:00:47]} 43. Bc2 {[%clk 0:00:20]}  Rb4 {[%clk 0:00:46]} 44. Nf2 {[%clk 0:00:15]}  g4 {[%clk 0:00:43]} 45. hxg4 {[%clk 0:00:14]}  fxg4 {[%clk 0:00:42]} 46. Rf4 {[%clk 0:00:14]}  Rxe3 {[%clk 0:00:42]} 47. Rxb4 {[%clk 0:00:14]}  axb4 {[%clk 0:00:41]} 48. a5 {[%clk 0:00:14]}  Re8 {[%clk 0:00:38]} 49. a6 {[%clk 0:00:13]}  Ne2 {[%clk 0:00:37]} 50. Re1 {[%clk 0:00:10]}  g3+ {[%clk 0:00:37]} 0-1


[Site "https://www.chess.com"]